[Event "Late-Titled-Tuesday-Blitz-January-23-2024"]
[Site "Chess.com"]
[Date "2024.01.23"]
[Round "3"]
[White "BardArtem"]
[Black "lucachess49"]
[Result "1/2-1/2"]
[WhiteElo "2805"]
[BlackElo "2519"]
[TimeControl "180+1"]
[EndTime "14:29:27 PST"]
[Termination "Game drawn - insufficient material"]

1. e4 {[%clk 0:02:58.5]} 1... e5 {[%clk 0:02:45.1]} 2. Nf3 {[%clk 0:02:57.6]}
2... Nc6 {[%clk 0:02:42.4]} 3. Bc4 {[%clk 0:02:55.9]} 3... Nf6 {[%clk 0:02:42]}
4. d3 {[%clk 0:02:55.6]} 4... Be7 {[%clk 0:02:40.6]} 5. Nc3 {[%clk 0:02:55.5]}
5... O-O {[%clk 0:02:39]} 6. a3 {[%clk 0:02:53.8]} 6... d6 {[%clk 0:02:36.6]} 7.
h3 {[%clk 0:02:48.4]} 7... Be6 {[%clk 0:02:29]} 8. O-O {[%clk 0:02:47.8]} 8...
h6 {[%clk 0:02:26.8]} 9. Re1 {[%clk 0:02:43.1]} 9... Nd4 {[%clk 0:02:14.5]} 10.
Be3 {[%clk 0:02:25.7]} 10... c5 {[%clk 0:02:11]} 11. Nd2 {[%clk 0:01:56.2]}
11... Qd7 {[%clk 0:01:56.2]} 12. Nf1 {[%clk 0:01:51.6]} 12... b5 {[%clk
0:01:47.7]} 13. Ba2 {[%clk 0:01:51]} 13... Bxa2 {[%clk 0:01:44.8]} 14. Rxa2
{[%clk 0:01:50.8]} 14... Qe6 {[%clk 0:01:44.6]} 15. Ra1 {[%clk 0:01:49.9]} 15...
a6 {[%clk 0:01:31]} 16. Bd2 {[%clk 0:01:41.1]} 16... d5 {[%clk 0:01:25.8]} 17.
Ne3 {[%clk 0:01:39.2]} 17... dxe4 {[%clk 0:01:16]} 18. dxe4 {[%clk 0:01:40.1]}
18... b4 {[%clk 0:00:55]} 19. axb4 {[%clk 0:01:36.1]} 19... cxb4 {[%clk
0:00:55.9]} 20. Ncd5 {[%clk 0:01:35]} 20... Nxe4 {[%clk 0:00:49.7]} 21. Nc7
{[%clk 0:01:32.5]} 21... Qc6 {[%clk 0:00:42]} 22. Nxa8 {[%clk 0:01:31.1]} 22...
Rxa8 {[%clk 0:00:41.4]} 23. Bxb4 {[%clk 0:01:19.6]} 23... Bh4 {[%clk 0:00:27.4]}
24. Ng4 {[%clk 0:01:12.8]} 24... f5 {[%clk 0:00:25.1]} 25. Qd3 {[%clk
0:01:06.2]} 25... Qxc2 {[%clk 0:00:19.9]} 26. Nxe5 {[%clk 0:00:31.3]} 26...
Bxf2+ {[%clk 0:00:09.9]} 27. Kh1 {[%clk 0:00:24.8]} 27... Bxe1 {[%clk
0:00:09.8]} 28. Qxd4 {[%clk 0:00:18.4]} 28... Bxb4 {[%clk 0:00:07.4]} 29. Qxb4
{[%clk 0:00:19.3]} 29... Qc7 {[%clk 0:00:05.2]} 30. Nf3 {[%clk 0:00:16.5]} 30...
Ng3+ {[%clk 0:00:05.1]} 31. Kg1 {[%clk 0:00:16.5]} 31... Ne4 {[%clk 0:00:05.3]}
32. Rd1 {[%clk 0:00:13.8]} 32... Kh8 {[%clk 0:00:04.2]} 33. Qd4 {[%clk 0:00:14]}
33... Qa7 {[%clk 0:00:04.1]} 34. Ne5 {[%clk 0:00:12.9]} 34... Qxd4+ {[%clk
0:00:03.1]} 35. Rxd4 {[%clk 0:00:13.8]} 35... Kh7 {[%clk 0:00:04]} 36. g4 {[%clk
0:00:13]} 36... Re8 {[%clk 0:00:02.3]} 37. Nd7 {[%clk 0:00:10.8]} 37... fxg4
{[%clk 0:00:02.6]} 38. hxg4 {[%clk 0:00:10.6]} 38... Nf6 {[%clk 0:00:01.8]} 39.
Nxf6+ {[%clk 0:00:10.1]} 39... gxf6 {[%clk 0:00:02.7]} 40. Rd6 {[%clk
0:00:10.9]} 40... Kg6 {[%clk 0:00:03.6]} 41. Rxa6 {[%clk 0:00:11.2]} 41... Re2
{[%clk 0:00:04.3]} 42. b4 {[%clk 0:00:06.8]} 42... Rb2 {[%clk 0:00:04.8]} 43.
Rb6 {[%clk 0:00:05.5]} 43... Kg5 {[%clk 0:00:05.4]} 44. Kf1 {[%clk 0:00:03.3]}
44... Kxg4 {[%clk 0:00:04.6]} 45. Rxf6 {[%clk 0:00:03.9]} 45... Rxb4 {[%clk
0:00:04.9]} 46. Rxh6 {[%clk 0:00:03.7]} 46... Rf4+ {[%clk 0:00:05.6]} 47. Kg2
{[%clk 0:00:03.8]} 47... Rf5 {[%clk 0:00:06.1]} 48. Ra6 {[%clk 0:00:04.1]} 48...
Rg5 {[%clk 0:00:06.4]} 49. Ra4+ {[%clk 0:00:04.4]} 49... Kh5+ {[%clk 0:00:06.7]}
50. Kf3 {[%clk 0:00:04.9]} 50... Rf5+ {[%clk 0:00:07]} 51. Kg3 {[%clk
0:00:05.5]} 51... Rg5+ {[%clk 0:00:07.4]} 52. Kh3 {[%clk 0:00:06.2]} 52... Kg6
{[%clk 0:00:07.2]} 53. Ra6+ {[%clk 0:00:05.4]} 53... Kh5 {[%clk 0:00:07.5]} 54.
Rb6 {[%clk 0:00:05.4]} 54... Rg6 {[%clk 0:00:07.4]} 55. Rb5+ {[%clk 0:00:05.9]}
55... Rg5 {[%clk 0:00:08]} 56. Rb8 {[%clk 0:00:06]} 56... Rg6 {[%clk 0:00:08.2]}
57. Rh8+ {[%clk 0:00:05.9]} 57... Rh6 {[%clk 0:00:08.6]} 58. Rf8 {[%clk
0:00:06.4]} 58... Rg6 {[%clk 0:00:09.2]} 59. Rf5+ {[%clk 0:00:05.9]} 59... Rg5
{[%clk 0:00:09.6]} 60. Rf4 {[%clk 0:00:06.5]} 60... Kg6 {[%clk 0:00:08.7]} 61.
Kh4 {[%clk 0:00:06.1]} 61... Rh5+ {[%clk 0:00:08.8]} 62. Kg4 {[%clk 0:00:06.9]}
62... Rg5+ {[%clk 0:00:09.7]} 63. Kf3 {[%clk 0:00:07.6]} 63... Rf5 {[%clk
0:00:10.2]} 64. Kg4 {[%clk 0:00:07.6]} 64... Rxf4+ {[%clk 0:00:10]} 65. Kxf4
{[%clk 0:00:08.5]} 1/2-1/2

[Event "Late-Titled-Tuesday-Blitz-January-23-2024"]
[Site "Chess.com"]
[Date "2024.01.23"]
[Round "3"]
[White "mbchess97"]
[Black "AndreyNeves"]
[Result "1-0"]
[WhiteElo "2335"]
[BlackElo "2023"]
[TimeControl "180+1"]
[EndTime "14:29:33 PST"]
[Termination "mbchess97 won by checkmate"]

1. c4 {[%clk 0:03:00.9]} 1... e6 {[%clk 0:02:58.1]} 2. g3 {[%clk 0:03:00.9]}
2... d5 {[%clk 0:02:57.6]} 3. Bg2 {[%clk 0:03:01.1]} 3... Nf6 {[%clk 0:02:58.2]}
4. Nf3 {[%clk 0:02:59.8]} 4... dxc4 {[%clk 0:02:54.1]} 5. Qa4+ {[%clk
0:02:59.5]} 5... Bd7 {[%clk 0:02:53.9]} 6. Qxc4 {[%clk 0:02:59.5]} 6... Bc6
{[%clk 0:02:54.1]} 7. O-O {[%clk 0:02:58]} 7... Be7 {[%clk 0:02:48.9]} 8. d4
{[%clk 0:02:53.1]} 8... O-O {[%clk 0:02:46.9]} 9. Nc3 {[%clk 0:02:52.3]} 9... a6
{[%clk 0:02:43.1]} 10. Bf4 {[%clk 0:02:38]} 10... b5 {[%clk 0:02:31.7]} 11. Qb3
{[%clk 0:02:33.1]} 11... b4 {[%clk 0:02:28.2]} 12. Na4 {[%clk 0:02:27.3]} 12...
Nd5 {[%clk 0:02:12.8]} 13. Bd2 {[%clk 0:02:08.9]} 13... Bb5 {[%clk 0:02:12.1]}
14. Rfe1 {[%clk 0:02:02.8]} 14... Qe8 {[%clk 0:02:02.9]} 15. Nc5 {[%clk
0:01:50.9]} 15... Bxc5 {[%clk 0:02:02.7]} 16. dxc5 {[%clk 0:01:51]} 16... Nc6
{[%clk 0:01:56.5]} 17. e4 {[%clk 0:01:47.4]} 17... Nf6 {[%clk 0:01:54.9]} 18.
Bg5 {[%clk 0:01:43.5]} 18... Nd7 {[%clk 0:01:41.7]} 19. Qc2 {[%clk 0:01:30.1]}
19... h6 {[%clk 0:01:36.3]} 20. Bf4 {[%clk 0:01:28.3]} 20... e5 {[%clk
0:01:35.6]} 21. Be3 {[%clk 0:01:26]} 21... Qe6 {[%clk 0:01:34.6]} 22. Rad1
{[%clk 0:01:06.3]} 22... Rfd8 {[%clk 0:01:26.9]} 23. b3 {[%clk 0:01:03.3]} 23...
a5 {[%clk 0:01:26]} 24. h4 {[%clk 0:00:58.5]} 24... a4 {[%clk 0:01:25.3]} 25.
Kh2 {[%clk 0:00:57.9]} 25... axb3 {[%clk 0:01:25.2]} 26. axb3 {[%clk 0:00:58.6]}
26... Ra3 {[%clk 0:01:25.1]} 27. Bh3 {[%clk 0:00:57.6]} 27... Qe7 {[%clk
0:01:18.7]} 28. Rd2 {[%clk 0:00:54.7]} 28... Nf6 {[%clk 0:01:11.2]} 29. Rxd8+
{[%clk 0:00:53.8]} 29... Qxd8 {[%clk 0:01:10.5]} 30. Rd1 {[%clk 0:00:54.1]}
30... Qe7 {[%clk 0:01:04.4]} 31. Bc1 {[%clk 0:00:53.8]} 31... Ra8 {[%clk
0:01:00.4]} 32. Be3 {[%clk 0:00:38.6]} 32... Rd8 {[%clk 0:00:57.3]} 33. Rd2
{[%clk 0:00:35.4]} 33... Rxd2 {[%clk 0:00:53]} 34. Qxd2 {[%clk 0:00:36.3]} 34...
Nd4 {[%clk 0:00:41.2]} 35. Nxd4 {[%clk 0:00:33.7]} 35... exd4 {[%clk 0:00:41.4]}
36. Qxd4 {[%clk 0:00:33.5]} 36... Qxe4 {[%clk 0:00:37.2]} 37. Qxe4 {[%clk
0:00:29.4]} 37... Nxe4 {[%clk 0:00:38.1]} 38. Bg2 {[%clk 0:00:25.6]} 38... Nc3
{[%clk 0:00:34.9]} 39. Bd2 {[%clk 0:00:25]} 39... Kf8 {[%clk 0:00:31]} 40. f4
{[%clk 0:00:23.3]} 40... Ke7 {[%clk 0:00:30]} 41. Bf3 {[%clk 0:00:23.6]} 41...
Kd7 {[%clk 0:00:27.8]} 42. Kg1 {[%clk 0:00:24]} 42... Bc6 {[%clk 0:00:27.4]} 43.
Kf2 {[%clk 0:00:21.4]} 43... Bxf3 {[%clk 0:00:26.3]} 44. Kxf3 {[%clk 0:00:21.7]}
44... Kc6 {[%clk 0:00:27.2]} 45. Be3 {[%clk 0:00:14.5]} 45... Nd5 {[%clk
0:00:26.9]} 46. Bd4 {[%clk 0:00:14]} 46... f6 {[%clk 0:00:25.5]} 47. Ke4 {[%clk
0:00:14]} 47... Ne7 {[%clk 0:00:20]} 48. h5 {[%clk 0:00:12.8]} 48... Kb5 {[%clk
0:00:18.1]} 49. g4 {[%clk 0:00:12.5]} 49... c6 {[%clk 0:00:18.1]} 50. g5 {[%clk
0:00:11.6]} 50... fxg5 {[%clk 0:00:16.1]} 51. fxg5 {[%clk 0:00:12.5]} 51... hxg5
{[%clk 0:00:14.1]} 52. Bxg7 {[%clk 0:00:13.1]} 52... Kxc5 {[%clk 0:00:13.7]} 53.
h6 {[%clk 0:00:13.3]} 53... Ng6 {[%clk 0:00:12.9]} 54. Kf5 {[%clk 0:00:13.6]}
54... g4 {[%clk 0:00:12.7]} 55. Kxg6 {[%clk 0:00:09.9]} 55... g3 {[%clk
0:00:12.7]} 56. Be5 {[%clk 0:00:10.2]} 56... g2 {[%clk 0:00:10.7]} 57. Bh2
{[%clk 0:00:10.8]} 57... Kd4 {[%clk 0:00:10.6]} 58. h7 {[%clk 0:00:11.1]} 58...
c5 {[%clk 0:00:10.8]} 59. h8=Q+ {[%clk 0:00:11.3]} 59... Kd3 {[%clk 0:00:11.7]}
60. Qg8 {[%clk 0:00:11.2]} 60... Ke2 {[%clk 0:00:10.1]} 61. Qc4+ {[%clk
0:00:12.1]} 61... Kf2 {[%clk 0:00:09.5]} 62. Qxc5+ {[%clk 0:00:11.5]} 62... Kf3
{[%clk 0:00:08.8]} 63. Bg1 {[%clk 0:00:12.4]} 63... Ke2 {[%clk 0:00:07.9]} 64.
Qe3+ {[%clk 0:00:12.7]} 64... Kf1 {[%clk 0:00:08.8]} 65. Qf2# {[%clk 0:00:12.7]}
1-0

[Event "Late-Titled-Tuesday-Blitz-January-23-2024"]
[Site "Chess.com"]
[Date "2024.01.23"]
[Round "3"]
[White "Kostukov_Alex"]
[Black "Maxfan2008"]
[Result "1-0"]
[WhiteElo "2306"]
[BlackElo "2505"]
[TimeControl "180+1"]
[EndTime "14:29:36 PST"]
[Termination "Kostukov_Alex won by resignation"]

1. g3 {[%clk 0:03:00.9]} 1... Nf6 {[%clk 0:02:58.8]} 2. Bg2 {[%clk 0:02:59.3]}
2... e6 {[%clk 0:02:59.3]} 3. d3 {[%clk 0:02:58]} 3... d5 {[%clk 0:02:59.6]} 4.
e4 {[%clk 0:02:58.9]} 4... Be7 {[%clk 0:02:59.3]} 5. e5 {[%clk 0:02:58.3]} 5...
Nfd7 {[%clk 0:02:58.5]} 6. f4 {[%clk 0:02:59.2]} 6... c5 {[%clk 0:02:57.8]} 7.
Nf3 {[%clk 0:03:00.1]} 7... a5 {[%clk 0:02:58]} 8. c4 {[%clk 0:02:59]} 8... d4
{[%clk 0:02:56.7]} 9. O-O {[%clk 0:02:57.2]} 9... a4 {[%clk 0:02:56.3]} 10. Na3
{[%clk 0:02:52.9]} 10... Nc6 {[%clk 0:02:55.6]} 11. Bd2 {[%clk 0:02:47.7]} 11...
O-O {[%clk 0:02:46.3]} 12. Qe2 {[%clk 0:02:45.5]} 12... f6 {[%clk 0:02:40.9]}
13. exf6 {[%clk 0:02:42.8]} 13... Nxf6 {[%clk 0:02:41.8]} 14. Ng5 {[%clk
0:02:38.2]} 14... Qd7 {[%clk 0:02:23.7]} 15. Bh3 {[%clk 0:02:35.2]} 15... Nd8
{[%clk 0:02:21.5]} 16. Rae1 {[%clk 0:02:34]} 16... h6 {[%clk 0:02:18.3]} 17.
Nxe6 {[%clk 0:02:25.4]} 17... Rf7 {[%clk 0:02:08.4]} 18. Ng5 {[%clk 0:02:18.7]}
18... Qxh3 {[%clk 0:02:00.3]} 19. Nxh3 {[%clk 0:02:16.6]} 19... Bxh3 {[%clk
0:02:01.2]} 20. Qxe7 {[%clk 0:01:57.1]} 20... Rxe7 {[%clk 0:01:58.3]} 21. Rxe7
{[%clk 0:01:56]} 21... Bxf1 {[%clk 0:01:58]} 22. Kxf1 {[%clk 0:01:55.8]} 22...
Kf8 {[%clk 0:01:58.4]} 23. Rc7 {[%clk 0:01:52.7]} 23... b6 {[%clk 0:01:53.3]}
24. f5 {[%clk 0:01:44.5]} 24... Ne8 {[%clk 0:01:51.8]} 25. Rd7 {[%clk
0:01:41.7]} 25... Nf6 {[%clk 0:01:47.1]} 26. Rd6 {[%clk 0:01:40.5]} 26... Rb8
{[%clk 0:01:39.9]} 27. Nb5 {[%clk 0:01:35.3]} 27... Ke7 {[%clk 0:01:39]} 28. Bf4
{[%clk 0:01:32.8]} 28... Rb7 {[%clk 0:01:35.1]} 29. h3 {[%clk 0:01:21.3]} 29...
Nh5 {[%clk 0:01:30.9]} 30. Be5 {[%clk 0:01:15.9]} 30... Nf7 {[%clk 0:01:31.4]}
31. Re6+ {[%clk 0:01:15.2]} 31... Kf8 {[%clk 0:01:29.9]} 32. g4 {[%clk
0:01:12.2]} 32... Nxe5 {[%clk 0:01:22.5]} 33. Rxe5 {[%clk 0:01:11]} 33... Nf4
{[%clk 0:01:22.3]} 34. Nd6 {[%clk 0:01:01.5]} 34... Re7 {[%clk 0:01:21.9]} 35.
Rxe7 {[%clk 0:01:01.3]} 35... Kxe7 {[%clk 0:01:21.8]} 36. Nc8+ {[%clk
0:01:02.2]} 36... Kf6 {[%clk 0:01:18.5]} 37. Nxb6 {[%clk 0:01:03.1]} 37... Nxd3
{[%clk 0:01:18.4]} 38. Nxa4 {[%clk 0:01:03.1]} 38... Ke5 {[%clk 0:01:12.8]} 39.
Ke2 {[%clk 0:01:01.8]} 39... Ke4 {[%clk 0:01:13]} 40. Kd2 {[%clk 0:00:56.1]}
40... Ne5 {[%clk 0:01:07.8]} 41. Nxc5+ {[%clk 0:00:54]} 41... Kf3 {[%clk
0:01:08.4]} 42. b3 {[%clk 0:00:47.7]} 42... Kg3 {[%clk 0:01:08.2]} 43. Ne6
{[%clk 0:00:46]} 43... Kxh3 {[%clk 0:01:06.9]} 44. Nxg7 {[%clk 0:00:45.8]} 44...
Kxg4 {[%clk 0:01:07.1]} 45. f6 {[%clk 0:00:45.6]} 45... h5 {[%clk 0:01:06.7]}
46. Nxh5 {[%clk 0:00:45]} 46... Kxh5 {[%clk 0:01:06.3]} 47. a4 {[%clk
0:00:44.2]} 47... Kg6 {[%clk 0:01:06.9]} 48. a5 {[%clk 0:00:44.5]} 48... Kxf6
{[%clk 0:01:07.3]} 49. a6 {[%clk 0:00:45]} 49... Nd7 {[%clk 0:00:53.7]} 50. c5
{[%clk 0:00:38.2]} 50... Nxc5 {[%clk 0:00:33.4]} 51. a7 {[%clk 0:00:37.2]} 51...
Nxb3+ {[%clk 0:00:33.9]} 52. Kd1 {[%clk 0:00:36.1]} 52... Ke5 {[%clk 0:00:31.4]}
53. a8=Q {[%clk 0:00:35.9]} 53... Nc5 {[%clk 0:00:29.1]} 54. Qc6 {[%clk
0:00:33.7]} 54... Ne4 {[%clk 0:00:26.5]} 55. Ke2 {[%clk 0:00:31.7]} 55... Nc3+
{[%clk 0:00:25.3]} 56. Kd3 {[%clk 0:00:31.4]} 56... Nd5 {[%clk 0:00:25.5]} 57.
Qc5 {[%clk 0:00:30.2]} 57... Ke6 {[%clk 0:00:24.1]} 58. Kxd4 {[%clk 0:00:30.2]}
58... Ne7 {[%clk 0:00:21.8]} 59. Ke4 {[%clk 0:00:29.4]} 59... Kd7 {[%clk
0:00:19.9]} 60. Ke5 {[%clk 0:00:25.9]} 60... Nc6+ {[%clk 0:00:19.7]} 61. Kf6
{[%clk 0:00:25.6]} 61... Kc7 {[%clk 0:00:19.3]} 62. Ke6 {[%clk 0:00:24.1]} 62...
Kb7 {[%clk 0:00:19.8]} 63. Kd6 {[%clk 0:00:22.3]} 63... Nb8 {[%clk 0:00:19.9]}
64. Qb5+ {[%clk 0:00:22.1]} 64... Kc8 {[%clk 0:00:19.8]} 65. Qa4 {[%clk
0:00:17.2]} 65... Kb7 {[%clk 0:00:19.9]} 66. Qe8 {[%clk 0:00:14.8]} 66... Na6
{[%clk 0:00:19.2]} 67. Qd7+ {[%clk 0:00:13.4]} 67... Kb6 {[%clk 0:00:19.5]} 68.
Qc6+ {[%clk 0:00:13.8]} 68... Ka7 {[%clk 0:00:19.7]} 69. Qb5 {[%clk 0:00:12.1]}
69... Nb8 {[%clk 0:00:18.3]} 70. Kc7 {[%clk 0:00:11.4]} 70... Na6+ {[%clk
0:00:18.6]} 71. Kc8 {[%clk 0:00:10.6]} 1-0

[Event "Late-Titled-Tuesday-Blitz-January-23-2024"]
[Site "Chess.com"]
[Date "2024.01.23"]
[Round "3"]
[White "rychessmaster1"]
[Black "rasmussvane"]
[Result "0-1"]
[WhiteElo "2727"]
[BlackElo "2983"]
[TimeControl "180+1"]
[EndTime "14:29:43 PST"]
[Termination "rasmussvane won by resignation"]

1. Nf3 {[%clk 0:03:00.9]} 1... d5 {[%clk 0:02:54.2]} 2. g3 {[%clk 0:03:00.2]}
2... Nc6 {[%clk 0:02:53.9]} 3. d4 {[%clk 0:03:00.1]} 3... Bf5 {[%clk 0:02:52.8]}
4. Bg2 {[%clk 0:02:59.9]} 4... Nb4 {[%clk 0:02:52.2]} 5. Na3 {[%clk 0:03:00.4]}
5... e6 {[%clk 0:02:52.3]} 6. O-O {[%clk 0:02:59.1]} 6... Be7 {[%clk 0:02:42.1]}
7. c3 {[%clk 0:02:47.5]} 7... Nc6 {[%clk 0:02:41.3]} 8. Nc2 {[%clk 0:02:47.6]}
8... Nf6 {[%clk 0:02:35.9]} 9. Nh4 {[%clk 0:02:45.8]} 9... Be4 {[%clk
0:02:33.4]} 10. Re1 {[%clk 0:02:19.1]} 10... Bxg2 {[%clk 0:02:32]} 11. Nxg2
{[%clk 0:02:20]} 11... O-O {[%clk 0:02:31.6]} 12. Bg5 {[%clk 0:02:16.3]} 12...
e5 {[%clk 0:02:28.6]} 13. Nge3 {[%clk 0:02:05.2]} 13... exd4 {[%clk 0:02:18.5]}
14. Nxd4 {[%clk 0:02:04.6]} 14... h6 {[%clk 0:02:12.5]} 15. Bxf6 {[%clk
0:01:39.5]} 15... Bxf6 {[%clk 0:02:13.4]} 16. Nxc6 {[%clk 0:01:37.3]} 16... bxc6
{[%clk 0:02:13.3]} 17. Ng4 {[%clk 0:01:38]} 17... Rb8 {[%clk 0:02:05.7]} 18. Qc2
{[%clk 0:01:36.1]} 18... Re8 {[%clk 0:01:51.7]} 19. Rad1 {[%clk 0:01:34.9]}
19... h5 {[%clk 0:01:48.2]} 20. Nxf6+ {[%clk 0:01:32.2]} 20... Qxf6 {[%clk
0:01:49.1]} 21. Rd4 {[%clk 0:01:30.3]} 21... Rb5 {[%clk 0:01:35]} 22. Rf4 {[%clk
0:01:21.7]} 22... Qd6 {[%clk 0:01:21.1]} 23. Qf5 {[%clk 0:01:05.1]} 23... Qg6
{[%clk 0:00:58.1]} 24. Qxg6 {[%clk 0:00:50.5]} 24... fxg6 {[%clk 0:00:59]} 25.
b4 {[%clk 0:00:49.4]} 25... a5 {[%clk 0:00:54.1]} 26. a3 {[%clk 0:00:49.8]}
26... axb4 {[%clk 0:00:54.3]} 27. axb4 {[%clk 0:00:50.5]} 27... c5 {[%clk
0:00:52.9]} 28. Rd1 {[%clk 0:00:46.1]} 28... cxb4 {[%clk 0:00:47.1]} 29. Rxb4
{[%clk 0:00:47]} 29... Rc5 {[%clk 0:00:46.9]} 30. e3 {[%clk 0:00:46.8]} 30... c6
{[%clk 0:00:43.6]} 31. Rb3 {[%clk 0:00:44.2]} 31... Re4 {[%clk 0:00:42.9]} 32.
Rd4 {[%clk 0:00:43.5]} 32... Kf7 {[%clk 0:00:37.8]} 33. Kf1 {[%clk 0:00:41.3]}
33... Kf6 {[%clk 0:00:35.7]} 34. Ke2 {[%clk 0:00:41.4]} 34... Re7 {[%clk
0:00:29.1]} 35. c4 {[%clk 0:00:30.8]} 35... Rxc4 {[%clk 0:00:26]} 36. Rxc4
{[%clk 0:00:30.9]} 36... dxc4 {[%clk 0:00:26.9]} 37. Rc3 {[%clk 0:00:31.5]}
37... Ke5 {[%clk 0:00:21.6]} 38. Rxc4 {[%clk 0:00:31.7]} 38... Rc7 {[%clk
0:00:20.9]} 39. e4 {[%clk 0:00:30.4]} 39... c5 {[%clk 0:00:20.6]} 40. f4+ {[%clk
0:00:30.7]} 40... Kd6 {[%clk 0:00:20.9]} 41. Kd3 {[%clk 0:00:26.5]} 41... Ra7
{[%clk 0:00:20.3]} 42. Rc2 {[%clk 0:00:24.5]} 42... Ra4 {[%clk 0:00:19.9]} 43.
Rb2 {[%clk 0:00:21.5]} 43... Kc6 {[%clk 0:00:19.3]} 44. Rb8 {[%clk 0:00:20.1]}
44... Ra3+ {[%clk 0:00:19.6]} 45. Kc4 {[%clk 0:00:18.6]} 45... Ra4+ {[%clk
0:00:18.4]} 46. Kd3 {[%clk 0:00:19.3]} 46... Rd4+ {[%clk 0:00:08.8]} 47. Ke3
{[%clk 0:00:19.8]} 47... Rd7 {[%clk 0:00:09.1]} 48. h3 {[%clk 0:00:15.6]} 48...
c4 {[%clk 0:00:09.3]} 49. Rc8+ {[%clk 0:00:12.2]} 49... Kb5 {[%clk 0:00:09.4]}
50. Rb8+ {[%clk 0:00:12.5]} 50... Kc5 {[%clk 0:00:09.7]} 51. Rc8+ {[%clk
0:00:11.7]} 51... Kb4 {[%clk 0:00:10.3]} 52. Rb8+ {[%clk 0:00:12.4]} 52... Ka3
{[%clk 0:00:09.7]} 53. Ra8+ {[%clk 0:00:10.9]} 53... Kb3 {[%clk 0:00:09.9]} 54.
Rb8+ {[%clk 0:00:11.5]} 54... Kc2 {[%clk 0:00:10.4]} 55. e5 {[%clk 0:00:12.2]}
55... c3 {[%clk 0:00:09.5]} 56. g4 {[%clk 0:00:09.9]} 56... hxg4 {[%clk
0:00:09.4]} 57. hxg4 {[%clk 0:00:10.8]} 57... Kc1 {[%clk 0:00:05.7]} 58. Ke2
{[%clk 0:00:10]} 58... c2 {[%clk 0:00:05.9]} 59. f5 {[%clk 0:00:10.4]} 59...
gxf5 {[%clk 0:00:06]} 60. gxf5 {[%clk 0:00:11.3]} 60... Rd5 {[%clk 0:00:06.1]}
61. e6 {[%clk 0:00:03.9]} 61... Rxf5 {[%clk 0:00:05.8]} 62. Rb6 {[%clk
0:00:04.6]} 62... Re5+ {[%clk 0:00:04.4]} 63. Kf2 {[%clk 0:00:05.3]} 63... g5
{[%clk 0:00:03.2]} 64. Kf1 {[%clk 0:00:02.4]} 64... g4 {[%clk 0:00:03]} 65. Kf2
{[%clk 0:00:03]} 65... Re4 {[%clk 0:00:03.7]} 66. Kf1 {[%clk 0:00:02.3]} 66...
Kd2 {[%clk 0:00:03.3]} 67. Rd6+ {[%clk 0:00:01.9]} 67... Kc3 {[%clk 0:00:03.8]}
68. Rc6+ {[%clk 0:00:02.4]} 68... Kd3 {[%clk 0:00:04.4]} 69. Rd6+ {[%clk
0:00:02.7]} 69... Ke3 {[%clk 0:00:04]} 70. Rc6 {[%clk 0:00:02.9]} 70... Kd2
{[%clk 0:00:03.9]} 71. Rd6+ {[%clk 0:00:02.8]} 71... Kc3 {[%clk 0:00:03.9]} 72.
Rc6+ {[%clk 0:00:02.6]} 72... Rc4 {[%clk 0:00:04.4]} 0-1